bitfinex-derivatives/quotes_BNBF0:USTF0_20251203
["timestamp","ask_amount","ask_price","bid_price","bid_amount"]
[1764779417901,0.6372558,896.42,895.53,1.65894078]
[1764779418100,0.6372558,896.41,895.53,1.65894078]
[1764779418301,0.6372558,896.4,895.53,1.65894078]
[1764779418502,0.6372558,896.39,895.53,1.65894078]
[1764779418701,0.6372558,896.38,895.53,1.65894078]
[1764779418899,0.6372558,896.37,895.53,1.65894078]
[1764779419098,0.6372558,896.36,895.53,1.65894078]
[1764779419297,0.63746311,896.35,895.53,1.65894078]
[1764779419598,0.8310464,896.64,895.53,1.65894078]
[1764779419801,0.63746316,896.63,895.53,1.65894078]
[1764779420001,0.63746316,896.62,895.53,1.65894078]
[1764779420202,0.63746316,896.61,895.53,1.65894078]
[1764779420405,0.63746316,896.6,895.53,1.65894078]
[1764779420700,0.63746316,896.59,895.53,1.65894078]
[1764779420904,0.63746316,896.58,895.58,1.65894078]
[1764779421106,0.63746316,896.57,895.57,1.65894078]
[1764779421306,0.63746316,896.56,895.57,1.65894078]
[1764779421604,0.63746316,896.55,895.62,1.65894078]
[1764779421801,0.63746316,896.54,895.62,1.65894078]
[1764779422104,0.63746316,896.53,895.61,1.65894078]
[1764779422304,0.63746316,896.52,895.61,1.65894078]
[1764779422502,0.63746316,896.51,895.62,1.65894078]
[1764779422705,0.63746316,896.5,895.62,1.65894078]
[1764779423005,0.63746316,896.49,895.62,1.65894078]
[1764779423201,0.63746316,896.48,895.61,1.65894078]
[1764779423499,0.63746316,896.47,895.62,1.65894078]
[1764779423701,0.63746316,896.46,895.62,1.65894078]
[1764779423904,0.63746316,896.45,895.62,1.65894078]
[1764779424105,0.8310464,896.76,895.64,1.65894078]
[1764779424304,0.63733209,896.75,895.74,1.65894078]
[1764779424508,0.63733209,896.74,895.74,1.65894078]
[1764779424702,0.63733209,896.73,895.74,1.65894078]
[1764779424906,0.63733209,896.72,895.75,1.65894078]
[1764779425102,0.63733209,896.71,895.83,1.65894078]
[1764779425307,0.63733209,896.7,895.81,1.65894078]
[1764779425507,0.63733209,896.69,895.81,1.65894078]
[1764779425805,0.63733209,896.68,895.81,1.65894078]
[1764779426004,0.63733209,896.67,895.81,1.65894078]
[1764779426306,0.8310464,896.97,895.79,1.65894078]
[1764779426508,0.19409786,897.24,895.79,1.65894078]
[1764779426509,1.46560165,896.96,895.79,1.65894078]
[1764779426705,0.63455525,896.95,895.79,1.65894078]
[1764779426909,0.63455525,896.94,895.79,1.65894078]
[1764779427110,0.63455525,896.93,895.77,1.65894078]
[1764779427308,0.63455525,896.92,895.78,1.65894078]
[1764779427506,0.63455525,896.91,895.79,1.65894078]
[1764779427809,0.63455525,896.9,895.79,1.65894078]
[1764779428106,0.63455525,896.89,895.78,1.65894078]
[1764779428309,0.63455525,896.88,895.79,1.65894078]
[1764779428506,0.63455525,896.87,895.79,1.65894078]
[1764779428705,0.63455525,896.86,895.79,1.65894078]
[1764779428910,0.63455525,896.85,895.79,1.65894078]
[1764779429208,0.63455525,896.84,895.77,1.65894078]
[1764779429411,0.63455525,896.83,895.77,1.65894078]
[1764779429614,0.63455525,896.82,895.77,1.65894078]
[1764779429809,0.63455525,896.81,895.77,1.65894078]
[1764779430007,0.63455525,896.8,895.77,1.65894078]
[1764779430312,0.63455525,896.79,895.76,1.65894078]
[1764779430511,0.63455525,896.78,895.76,1.65894078]
[1764779430708,0.63455525,896.77,895.76,1.65894078]
[1764779430909,0.63455525,896.76,895.76,1.65894078]
[1764779431110,0.8310464,897.05,895.76,1.65894078]
[1764779431311,0.63349779,897.04,895.75,1.65894078]
[1764779431511,0.63349779,897.03,895.75,1.65894078]
[1764779431714,0.63349779,897.02,895.75,1.65894078]
[1764779431914,0.63349779,897.01,895.75,1.65894078]
[1764779432112,0.63349779,897.0,895.74,1.65894078]
[1764779432415,0.63349779,896.99,895.73,1.65894078]
[1764779432615,0.63349779,896.98,895.73,1.65894078]
[1764779432816,0.63349779,896.97,895.73,1.65894078]
[1764779433014,0.63349779,896.96,895.73,1.65894078]
[1764779433215,0.63349779,896.95,895.73,1.65894078]
[1764779433512,0.63349779,896.94,895.72,1.65894078]
[1764779433715,0.63349779,896.93,895.72,1.65894078]
[1764779433913,0.63349779,896.92,895.72,1.65894078]
[1764779434214,0.63349779,896.91,895.72,1.65894078]
[1764779434413,0.63349779,896.9,895.71,1.65894078]
[1764779434614,0.63349779,896.89,895.71,1.65894078]
[1764779434813,0.63349779,896.88,895.71,1.65894078]
[1764779435117,0.63349779,896.87,895.71,1.65894078]
[1764779435317,0.63349779,896.86,895.71,1.65894078]
[1764779435518,0.63349779,896.85,895.71,1.65894078]
[1764779435718,0.8310464,897.1,895.71,1.65894078]
[1764779435719,0.63349779,896.84,895.71,1.65894078]
[1764779435918,0.63349779,896.83,895.71,1.65894078]
[1764779436219,0.63349779,896.82,895.7,1.65894078]
[1764779436415,0.8310464,897.13,895.72,1.65894078]
[1764779436617,0.63274345,897.12,895.78,1.65894078]
[1764779436816,0.63274345,897.11,895.78,1.65894078]
[1764779437015,0.63274345,897.1,895.78,1.65894078]
[1764779437216,0.63274345,897.09,895.77,1.65894078]
[1764779437416,0.63274345,897.08,895.77,1.65894078]
[1764779437716,0.8310464,897.2,895.77,1.65894078]
[1764779437717,0.63274345,897.07,895.77,1.65894078]
[1764779437917,0.63274345,897.06,895.77,1.65894078]
[1764779438118,0.63274345,897.05,895.76,1.65894078]
[1764779438321,0.63274345,897.04,895.76,1.65894078]
[1764779438520,0.63274345,897.03,895.76,1.65894078]
[1764779438719,0.63274345,897.02,895.76,1.65894078]
[1764779438923,0.63274345,897.01,895.76,1.65894078]
[1764779439121,0.63274345,897.0,895.75,1.65894078]
[1764779439325,0.63274345,896.99,895.76,1.65894078]
[1764779439523,0.8310464,897.22,895.76,1.65894078]
[1764779439524,0.63274345,896.98,895.76,1.65894078]
[1764779439720,0.63274345,896.97,895.76,1.65894078]
[1764779439921,0.63274345,896.96,895.77,1.65894078]
[1764779440124,0.8310464,897.36,895.87,1.65894078]
[1764779440324,0.63228862,897.35,895.93,1.65894078]
[1764779440530,0.63228862,897.34,895.93,1.65894078]
[1764779440724,0.63228862,897.33,895.93,1.65894078]
[1764779441024,0.63228862,897.32,895.93,1.65894078]
[1764779441222,0.63228862,897.31,895.92,1.65894078]
[1764779441526,0.63228862,897.3,895.93,1.65894078]
[1764779441726,0.63228862,897.29,895.93,1.65894078]
[1764779441926,0.63228862,897.28,895.93,1.65894078]
[1764779442225,0.8310464,897.46,895.5,0.896]
[1764779442226,0.63228862,897.27,895.91,1.65894078]
[1764779442427,0.63228862,897.26,895.91,1.65894078]
[1764779442726,0.63228862,897.25,895.91,1.65894078]
[1764779443025,0.63228862,897.24,895.96,1.65894078]
[1764779443226,0.19402536,897.58,895.94,1.65894078]
[1764779443227,0.8310464,897.52,895.94,1.65894078]
[1764779443427,0.63153366,897.51,895.94,1.65894078]
[1764779443627,0.63153366,897.5,895.94,1.65894078]
[1764779443827,0.63153366,897.49,895.94,1.65894078]
[1764779444128,0.63153366,897.48,895.91,1.65894078]
[1764779444322,0.63153366,897.47,895.91,1.65894078]
[1764779444528,0.63153366,897.46,895.91,1.65894078]
[1764779444729,0.63153366,897.45,895.91,1.65894078]
[1764779444929,0.63153366,897.44,895.91,1.65894078]
[1764779445130,0.63153366,897.43,895.89,1.65894078]
[1764779445429,0.63153366,897.42,895.89,1.65894078]
[1764779445630,0.63153366,897.41,895.89,1.65894078]
[1764779445931,0.63153366,897.4,895.89,1.65894078]
[1764779446127,0.63153366,897.39,895.88,1.65894078]
[1764779446330,0.63153366,897.38,895.88,1.65894078]
[1764779446530,0.8310464,897.55,895.87,1.65894078]
[1764779446531,0.63153366,897.37,895.87,1.65894078]
[1764779446731,0.63153366,897.36,895.87,1.65894078]
[1764779447032,0.63153366,897.35,895.87,1.65894078]
[1764779447230,0.63153366,897.34,895.86,1.65894078]
[1764779447425,0.63153366,897.33,895.86,1.65894078]
[1764779447627,0.63153366,897.32,895.85,1.65894078]
[1764779447831,0.63153366,897.31,895.85,1.65894078]
[1764779448030,0.63153366,897.3,895.85,1.65894078]
[1764779448228,0.63153366,897.29,895.84,1.65894078]
[1764779448428,0.63153366,897.28,895.84,1.65894078]
[1764779448627,0.63153366,897.27,895.84,1.65894078]
[1764779448827,0.8310464,897.56,895.84,1.65894078]
[1764779449032,0.63064615,897.55,895.83,1.65894078]
[1764779449232,0.63064615,897.54,895.83,1.65894078]
[1764779449530,0.63064615,897.53,895.84,0.771]
[1764779449732,0.63064615,897.52,895.84,0.771]
[1764779449932,0.63064615,897.51,895.84,0.771]
[1764779450129,0.8310464,897.57,895.84,0.771]
[1764779450130,0.63064615,897.5,895.84,0.771]
[1764779450429,0.8310464,897.57,895.84,0.771]
[1764779450430,0.63064615,897.49,895.84,0.771]
[1764779450629,0.63064615,897.48,895.84,0.771]
[1764779450830,0.63064615,897.47,895.84,0.771]
[1764779451034,0.63064615,897.46,895.84,0.771]
[1764779451335,0.63064615,897.45,895.84,0.771]
[1764779451528,1.02507176,897.58,895.84,0.771]
[1764779451529,0.63064615,897.44,895.84,0.771]
[1764779451829,0.63064615,897.43,895.85,1.069]
[1764779452031,0.63064615,897.42,895.85,1.069]
[1764779452234,0.63064615,897.41,895.85,1.069]
[1764779452531,0.63064615,897.4,895.85,1.069]
[1764779452831,0.63064615,897.39,895.85,1.069]
[1764779453030,0.63064615,897.38,895.85,1.069]
[1764779453332,0.63064615,897.37,895.85,1.069]
[1764779453532,0.63064615,897.36,895.85,1.069]
[1764779453732,0.63064615,897.35,895.85,1.069]
[1764779453935,0.63064615,897.34,895.85,1.069]
[1764779454136,0.63064615,897.33,895.85,1.069]
[1764779454333,0.63064615,897.32,895.85,1.069]
[1764779454538,0.63064615,897.31,895.85,1.069]
[1764779454738,0.63064615,897.3,895.85,1.069]
[1764779455037,0.63064615,897.29,895.85,1.069]
[1764779455237,0.63064615,897.28,895.85,1.069]
[1764779455438,0.63064615,897.27,895.85,1.069]
[1764779455634,0.63064615,897.26,895.85,1.069]
[1764779455839,0.8310464,897.53,895.85,1.069]
[1764779455840,0.63064615,897.25,895.85,1.069]
[1764779456033,0.8310464,897.53,895.85,1.069]
[1764779456234,0.62980957,897.52,895.85,1.069]
[1764779456437,0.62980957,897.51,895.85,1.069]
[1764779456635,0.62980957,897.5,895.85,1.069]
[1764779456834,0.62980957,897.49,895.85,1.069]
[1764779457135,0.62980957,897.48,895.85,1.069]
[1764779457335,0.62980957,897.47,895.85,1.069]
[1764779457531,0.62980957,897.46,895.85,1.069]
[1764779457735,0.62980957,897.45,895.85,1.069]
[1764779457936,0.62980957,897.44,895.85,1.069]
[1764779458134,0.8310464,897.54,895.85,1.069]
[1764779458135,0.62980957,897.43,895.85,1.069]
[1764779458438,0.62980957,897.42,895.85,1.069]
[1764779458737,0.62980957,897.41,895.85,1.069]
[1764779458938,0.62980957,897.4,895.85,1.069]
[1764779459138,0.62980957,897.39,895.85,1.069]
[1764779459437,0.62980957,897.38,895.85,1.069]
[1764779459738,0.62980957,897.37,895.85,1.069]
[1764779460038,0.62980957,897.36,895.85,1.069]
[1764779460238,0.62980957,897.35,895.85,1.069]
[1764779460436,0.62980957,897.34,895.85,1.069]
[1764779460738,0.62980957,897.33,895.85,1.069]
[1764779460935,0.62980957,897.32,895.85,1.069]
[1764779461238,0.62980957,897.31,895.85,1.069]
[1764779461439,0.62980957,897.3,895.85,1.069]
[1764779461639,0.62980957,897.29,895.85,1.069]
[1764779461839,0.62980957,897.28,895.85,1.069]
[1764779462141,0.62980957,897.27,895.85,1.069]
[1764779462335,0.62980957,897.26,895.85,1.069]
[1764779462536,0.62980957,897.25,895.85,1.069]
[1764779462741,0.8310464,897.54,895.85,1.069]
[1764779462941,0.8310464,897.5,895.85,1.069]
[1764779463136,1.46027595,897.49,895.85,1.069]
[1764779463441,0.62922955,897.48,895.85,1.069]
[1764779464841,0.62922955,897.48,895.86,1.134]
[1764779467142,1.46027595,897.48,895.86,1.134]
[1764779467443,0.62922955,897.47,895.86,1.134]
[1764779468143,1.46027595,897.47,895.86,1.134]
[1764779468342,0.62922955,897.46,895.86,1.134]
[1764779469340,0.62922955,897.45,895.86,1.134]
[1764779469643,0.62922955,897.44,895.86,1.134]
[1764779469840,0.62922955,897.43,895.9,1.65894078]
[1764779470042,0.62922955,897.42,895.92,1.65894078]
[1764779470246,0.62922955,897.41,895.92,1.65894078]
[1764779470444,0.62922955,897.4,895.92,1.65894078]
[1764779470643,0.62922955,897.39,895.92,1.65894078]
[1764779470846,0.62922955,897.38,895.92,1.65894078]
[1764779471146,0.62922955,897.37,895.94,1.65894078]
[1764779471342,0.62922955,897.36,895.94,1.65894078]
[1764779471545,0.62922955,897.35,895.94,1.65894078]
[1764779471748,0.62922955,897.34,895.94,1.65894078]
[1764779472042,0.62922955,897.33,895.94,1.65894078]
[1764779472248,0.62922955,897.32,895.97,1.65894078]
[1764779472445,0.8310464,897.59,895.97,1.65894078]
[1764779472446,0.62922955,897.31,895.97,1.65894078]
[1764779472745,0.8310464,897.59,895.97,1.65894078]
[1764779473045,0.63054832,897.58,895.97,1.65894078]
[1764779473248,1.46159472,897.58,896.0,1.65894078]
[1764779473443,0.63054832,897.57,896.0,1.65894078]
[1764779473947,0.63054832,897.57,895.86,1.134]
[1764779473948,0.63054832,897.57,896.1,1.65894078]
[1764779474145,0.63054832,897.56,896.12,1.65894078]
[1764779474348,0.63054832,897.55,896.12,1.65894078]
[1764779474648,0.63054832,897.54,896.18,1.65894078]
[1764779474947,0.63054832,897.54,895.86,1.134]
[1764779474948,0.63054832,897.53,896.24,1.65894078]
[1764779475241,0.8310464,897.78,896.26,1.65894078]
[1764779475447,0.63144758,897.77,896.3,1.65894078]
[1764779475743,0.63144758,897.76,896.3,1.65894078]
[1764779475947,0.63144758,897.75,896.3,1.65894078]
[1764779476148,0.63144758,897.74,896.31,1.65894078]
[1764779476444,0.63144758,897.73,896.49,1.65894078]
[1764779476649,0.63144758,897.72,896.49,1.65894078]
[1764779476847,0.63144758,897.71,896.49,1.65894078]
[1764779477044,0.63171807,897.7,896.51,1.65894078]
[1764779477344,0.63171807,897.7,895.86,1.134]
[1764779477345,0.8310464,898.01,896.5,1.65894078]
[1764779477649,0.63143413,898.0,896.5,1.65894078]
[1764779477848,0.63143413,897.99,896.5,1.65894078]
[1764779478049,0.63143413,897.98,896.5,1.65894078]
[1764779478349,0.63143413,897.97,896.49,1.65894078]
[1764779478546,0.63143413,897.96,896.49,1.65894078]
[1764779478746,0.63143413,897.95,896.49,1.65894078]
[1764779478945,0.63143413,897.94,896.49,1.65894078]
[1764779479146,0.63143413,897.93,896.48,1.65894078]
[1764779479347,0.63143413,897.92,896.5,1.65894078]
[1764779479551,0.63143413,897.91,896.53,1.65894078]
[1764779479850,0.63143413,897.9,896.56,1.65894078]
[1764779480050,0.8310464,898.11,896.56,1.65894078]
[1764779480051,0.63143413,897.89,896.56,1.65894078]
[1764779480249,0.63143413,897.88,896.55,1.65894078]
[1764779480448,0.63143413,897.87,896.55,1.65894078]
[1764779480648,0.63143413,897.86,896.55,1.65894078]
[1764779480848,0.63143413,897.85,896.55,1.65894078]
[1764779481051,0.63143413,897.84,896.57,1.65894078]
[1764779481252,0.63143413,897.83,896.54,1.65894078]
[1764779481446,0.8310464,898.11,896.54,1.65894078]
[1764779481649,0.63140069,898.1,896.54,1.65894078]
[1764779481848,0.63140069,898.09,896.54,1.65894078]
[1764779482049,0.63140069,898.08,896.54,1.65894078]
[1764779482248,0.63140069,898.07,896.53,1.65894078]
[1764779482450,0.63140069,898.06,896.53,1.65894078]
[1764779482654,0.63140069,898.05,896.53,1.65894078]
[1764779482855,0.63140069,898.04,896.53,1.65894078]
[1764779483151,0.63140069,898.03,896.52,1.65894078]
[1764779483450,0.63140069,898.02,896.53,1.65894078]
[1764779483651,0.63140069,898.01,896.63,1.65894078]
[1764779483852,0.63140069,898.0,896.63,1.65894078]
[1764779484051,0.63140069,897.99,896.65,1.65894078]
[1764779484255,0.63140069,897.98,896.63,1.65894078]
[1764779484550,0.8310464,898.28,896.65,1.65894078]
[1764779484754,0.63109746,898.27,896.65,1.65894078]
[1764779485056,0.63109746,898.26,896.65,1.65894078]
[1764779485351,0.63109746,898.25,896.64,10.15564984]
[1764779485556,0.63109746,898.24,896.64,8.49670906]
[1764779485754,0.63109746,898.23,896.66,0.784]
[1764779485950,0.63109746,898.22,896.66,0.784]
[1764779486150,0.63109746,898.21,896.66,0.784]
[1764779486352,0.63109746,898.2,896.66,0.784]
[1764779486555,0.63109746,898.19,896.66,0.784]
[1764779486755,0.63109746,898.18,896.66,0.784]
[1764779486958,0.63109746,898.17,896.66,0.784]
[1764779487150,0.63109746,898.16,896.66,0.784]
[1764779487356,0.63109746,898.15,896.68,1.65894078]
[1764779487556,0.63109746,898.14,896.68,1.65894078]
[1764779487758,0.63109746,898.13,896.68,1.65894078]
[1764779488055,0.8310464,898.42,896.69,1.65894078]
[1764779488253,0.62990303,898.41,896.77,1.65894078]
[1764779488554,0.62990303,898.4,896.78,1.65894078]
[1764779488757,0.62990303,898.39,896.78,1.65894078]
[1764779489057,0.62990303,898.38,896.79,1.06]
[1764779489356,0.62990303,898.37,896.79,1.06]
[1764779489555,0.62990303,898.36,896.79,1.06]
[1764779489755,0.62990303,898.35,896.79,1.06]
[1764779489954,0.62990303,898.34,896.79,1.06]
[1764779490159,0.62990303,898.33,896.79,1.06]
[1764779490457,0.8310464,898.62,896.79,1.06]
[1764779490758,0.62913487,898.61,896.79,1.06]
[1764779490956,0.62913487,898.6,896.79,1.06]
[1764779491257,0.62913487,898.59,896.79,1.06]
[1764779491452,0.62913487,898.58,896.79,1.06]
[1764779491752,0.8310464,898.63,896.79,1.06]
[1764779491753,0.62913487,898.57,896.79,1.06]
[1764779491953,0.62913487,898.56,896.79,1.06]
[1764779492257,0.62913487,898.55,896.79,1.06]
[1764779492457,0.62913487,898.54,896.79,1.06]
[1764779492754,0.62913487,898.53,896.79,1.06]
[1764779492957,0.62913487,898.52,896.79,1.06]
[1764779493258,0.19377039,898.75,896.79,1.06]
[1764779493259,0.62913487,898.51,896.79,1.06]
[1764779493459,0.62913487,898.5,896.79,1.06]
[1764779493659,0.62913487,898.49,896.79,1.06]
[1764779493956,0.62913487,898.48,896.79,1.06]
[1764779494155,0.8310464,898.62,896.79,1.06]
[1764779494156,0.62913487,898.47,896.79,1.06]
[1764779494359,0.62913487,898.46,896.79,1.06]
[1764779494560,0.62913487,898.45,896.79,1.06]
[1764779494758,0.62913487,898.44,896.79,1.06]
[1764779494960,0.62913487,898.43,896.79,1.06]
[1764779495158,0.19377039,898.75,896.79,1.06]
[1764779495159,0.62913487,898.42,896.79,1.06]
[1764779495360,0.62913487,898.41,896.79,1.06]
[1764779495558,0.62913487,898.4,896.79,1.06]
[1764779495759,0.62913487,898.39,896.79,1.06]
[1764779496056,0.62913487,898.38,896.79,1.06]
[1764779496261,0.62913487,898.37,896.79,1.06]
[1764779496458,0.62913487,898.36,896.79,1.06]
[1764779496764,0.8310464,898.68,896.79,1.06]
[1764779496964,0.62799561,898.67,896.79,1.06]
[1764779497157,0.62799561,898.66,896.79,1.06]
[1764779497461,0.62799561,898.65,896.79,1.06]
[1764779497762,0.62799561,898.64,896.79,1.06]
[1764779498058,0.62799561,898.63,896.79,1.06]
[1764779498259,0.62799561,898.62,896.79,1.06]
[1764779498460,0.62799561,898.61,896.79,1.06]
[1764779498660,0.62799561,898.6,896.79,1.06]
[1764779498962,0.62799561,898.59,896.79,1.06]
[1764779499259,0.62799561,898.58,896.79,1.06]
[1764779499464,0.62799561,898.57,896.79,1.06]
[1764779499763,0.62799561,898.56,896.79,1.06]
[1764779499963,0.62799561,898.55,896.79,1.06]
[1764779500162,0.62799561,898.54,896.79,1.06]
[1764779500361,0.62799561,898.53,896.79,1.06]
[1764779500564,0.62799561,898.52,896.79,1.06]
[1764779500863,0.62799561,898.51,896.79,1.06]
[1764779501065,0.62799561,898.5,896.79,1.06]
[1764779501262,0.62799561,898.49,896.79,1.06]
[1764779501461,0.62799561,898.48,896.79,1.06]
[1764779501665,0.62799561,898.47,896.79,1.06]
[1764779501868,0.62799561,898.46,896.79,1.06]
[1764779502062,0.62799561,898.45,896.79,1.06]
[1764779502365,0.62799561,898.44,896.79,1.06]
[1764779502567,0.62799561,898.43,896.79,1.06]
[1764779502765,0.62799561,898.42,896.79,1.06]
[1764779502965,0.8310464,898.7,896.79,1.06]
[1764779503164,0.62725403,898.69,896.79,1.06]
[1764779503359,0.62725403,898.68,896.79,1.06]
[1764779503564,0.62725403,898.67,896.79,1.06]
[1764779503762,0.62725403,898.66,896.79,1.06]
[1764779503963,0.62725403,898.65,896.79,1.06]
[1764779504166,0.62725403,898.64,896.79,1.06]
[1764779504367,0.62725403,898.63,896.79,1.06]
[1764779504567,0.62725403,898.62,896.79,1.06]
[1764779504769,0.62725403,898.61,896.79,1.06]
[1764779504970,0.19377039,898.75,896.79,1.06]
[1764779505269,0.82227309,898.73,896.79,1.06]
[1764779505466,0.62701923,898.72,896.79,1.06]
[1764779505665,0.82227309,898.73,896.79,1.06]
[1764779505666,0.62701923,898.71,896.79,1.06]
[1764779505864,0.62701923,898.7,896.79,1.06]
[1764779506069,0.62701923,898.69,896.79,1.06]
[1764779506266,0.62701923,898.68,896.79,1.06]
[1764779506570,0.62701923,898.67,896.79,1.06]
[1764779506769,0.62701923,898.66,896.79,1.06]
[1764779506971,0.62701923,898.65,896.8,0.777]
[1764779507269,0.62701923,898.64,896.8,0.777]
[1764779507469,0.19377039,898.75,896.8,0.777]
[1764779507470,0.62701923,898.63,896.8,0.777]
[1764779507670,0.62701923,898.62,896.8,0.777]
[1764779507870,0.62701923,898.61,896.8,0.777]
[1764779508071,0.62701923,898.6,896.8,0.777]
[1764779508270,0.62701923,898.59,896.8,0.777]
[1764779508566,0.62701923,898.58,896.8,0.777]
[1764779508766,0.62701923,898.57,896.8,0.777]
[1764779508971,0.62701923,898.56,896.8,0.777]
[1764779509172,0.62701923,898.55,896.8,0.777]
[1764779509370,0.62701923,898.54,896.8,0.777]
[1764779509681,0.62701923,898.53,896.8,0.777]
[1764779509870,0.62701923,898.52,896.8,0.777]
[1764779510066,0.62701923,898.51,896.8,0.777]
[1764779510371,0.62701923,898.5,896.8,0.777]
[1764779510572,0.62701923,898.49,896.8,0.777]
[1764779510867,0.62701923,898.48,896.8,0.777]
[1764779511071,0.82227309,898.74,896.8,0.777]
[1764779511072,0.62701923,898.47,896.8,0.777]
[1764779511268,0.62701923,898.46,896.8,0.777]
[1764779511473,0.62701923,898.45,896.8,0.777]
[1764779511767,0.82227309,898.74,896.8,0.777]
[1764779511973,0.62612052,898.73,896.8,0.777]
[1764779512174,0.62612052,898.72,896.8,0.777]
[1764779512370,0.62612052,898.71,896.8,0.777]
[1764779512673,0.62612052,898.7,896.8,0.777]
[1764779512873,0.62612052,898.69,896.8,0.777]
[1764779513074,0.62612052,898.68,896.8,0.777]
[1764779513274,0.62612052,898.67,896.8,0.777]
[1764779513571,0.62612052,898.66,896.8,0.777]
[1764779513774,0.62612052,898.65,896.8,0.777]
[1764779513972,0.62612052,898.64,896.8,0.777]
[1764779514176,0.62612052,898.63,896.8,0.777]
[1764779514375,0.62612052,898.62,896.8,0.777]
[1764779514573,0.62612052,898.61,896.8,0.777]
[1764779514775,0.62612052,898.6,896.8,0.777]
[1764779514978,0.62612052,898.59,896.8,0.777]
[1764779515179,0.62612052,898.58,896.8,0.777]
[1764779515376,0.62612052,898.57,896.8,0.777]
[1764779515679,0.62612052,898.56,896.8,0.777]
[1764779515878,0.82227309,898.74,896.8,0.777]
[1764779515879,0.62612052,898.55,896.8,0.777]
[1764779516079,0.62612052,898.54,896.8,0.777]
[1764779516378,0.62612052,898.53,896.8,0.777]
[1764779516579,0.62612052,898.52,896.8,0.777]
[1764779516776,0.62612052,898.51,896.8,0.777]
[1764779516979,0.62612052,898.5,896.8,0.777]
[1764779517279,0.62612052,898.49,896.8,0.777]
[1764779517480,0.62612052,898.48,896.8,0.777]
[1764779517674,0.62612052,898.47,896.8,0.777]
[1764779517879,0.62612052,898.46,896.8,0.777]
[1764779518079,0.62612052,898.45,896.8,0.777]
[1764779518280,0.62612052,898.44,896.8,0.777]
[1764779518581,0.82227309,898.73,896.8,0.777]
[1764779521179,0.82227309,898.72,896.8,0.777]
[1764779523081,0.82227309,898.72,896.79,1.06]
[1764779523381,1.44886801,898.71,896.79,1.06]
[1764779523681,0.62659492,898.7,896.79,1.06]
[1764779523881,0.62659492,898.69,896.79,1.06]
[1764779524178,0.19377039,898.75,896.79,1.06]
[1764779524179,0.62659492,898.68,896.79,1.06]
[1764779524481,0.62659492,898.67,896.79,1.06]
[1764779524681,0.62659492,898.66,896.79,1.06]
[1764779524878,0.62659492,898.65,896.8,0.705]
[1764779525077,0.62659492,898.64,896.8,0.705]
[1764779525281,0.62659492,898.63,896.8,0.705]
[1764779525577,0.62659492,898.62,896.8,0.705]
[1764779525778,0.62659492,898.61,896.8,0.705]
[1764779525980,0.62659492,898.6,896.8,0.705]
[1764779526277,0.62659492,898.59,896.8,0.705]
[1764779526481,0.62659492,898.58,896.8,0.705]
[1764779526681,0.62659492,898.57,896.8,0.705]
[1764779526979,0.62659492,898.56,896.8,0.705]
[1764779527181,0.62659492,898.55,896.8,2.36394078]
[1764779527482,0.62659492,898.54,896.8,2.36394078]
[1764779527782,0.82227309,898.52,896.8,0.705]
[1764779528182,0.82227309,898.5,896.8,0.705]
[1764779528984,0.62659492,898.49,896.8,0.705]
[1764779529279,0.62659492,898.48,896.8,0.705]
[1764779529482,0.62659492,898.47,896.8,0.705]
[1764779529678,0.19377039,898.75,896.8,0.705]
[1764779529679,0.62659492,898.46,896.89,1.65894078]
[1764779529878,0.62659492,898.45,896.89,1.65894078]
[1764779530082,0.62659492,898.44,896.92,1.65894078]
[1764779530281,0.62659492,898.43,896.93,1.65894078]
[1764779530482,0.62659492,898.42,896.93,1.65894078]
[1764779530684,0.62659492,898.41,896.93,1.65894078]
[1764779530982,0.62659492,898.4,896.93,1.65894078]
[1764779531281,0.19377039,898.75,896.8,0.705]
[1764779531282,0.62659492,898.39,896.96,1.65894078]
[1764779531485,0.62659492,898.38,897.01,1.65894078]
[1764779531687,0.62659492,898.37,897.01,1.65894078]
[1764779531986,0.62659492,898.36,897.01,1.65894078]
[1764779532287,0.62659492,898.35,897.07,1.65894078]
[1764779532488,0.62659492,898.34,897.07,1.65894078]
[1764779532682,0.82227309,898.62,897.07,1.65894078]
[1764779533186,0.82227309,898.59,897.11,1.65894078]
[1764779533488,0.63085172,898.58,897.14,1.65894078]
[1764779533683,0.63085172,898.57,897.14,1.65894078]
[1764779533888,0.63085172,898.56,897.14,1.65894078]